fUSD/lending_fUSD_20250311
["ID","MTS","AMOUNT","RATE_DAILY","PERIOD"]
[355955073,1741734633890,-553.86,9.298e-05,2]
[355955074,1741734633899,-500.0,9.298e-05,2]
[355955075,1741734633910,-809.12,9.298e-05,2]
[355955076,1741734633919,-644.88,9.298e-05,2]
[355955077,1741734633929,-500.0,9.298e-05,2]
[355955078,1741734633939,-500.0,9.298e-05,2]
[355955079,1741734633948,-500.0,9.298e-05,2]
[355955080,1741734633958,-500.0,9.298e-05,2]
[355955081,1741734633967,-508.62,9.298e-05,2]
[355955082,1741734633977,-682.8,9.298e-05,2]
[355955083,1741734633987,-837.37,9.298e-05,2]
[355955084,1741734633997,-500.0,9.298e-05,2]
[355955085,1741734634006,-500.0,9.298e-05,2]
[355955086,1741734634015,-679.61,9.298e-05,2]
[355955087,1741734634025,-500.0,9.298e-05,2]
[355955088,1741734634034,-500.0,9.298e-05,2]
[355955089,1741734634044,-500.0,9.298e-05,2]
[355955090,1741734634053,-500.0,9.298e-05,2]
[355955091,1741734634064,-852.73,9.298e-05,2]
[355955092,1741734634073,-500.0,9.298e-05,2]
[355955093,1741734634084,-500.0,9.298e-05,2]
[355955094,1741734634093,-500.0,9.298e-05,2]
[355955095,1741734634102,-151.0,9.298e-05,2]
[355955096,1741734634112,-500.0,9.298e-05,2]
[355955097,1741734634122,-823.23,9.298e-05,2]
[355955098,1741734634131,-2194.59,9.298e-05,2]
[355955099,1741734634141,-500.0,9.298e-05,2]
[355955100,1741734634150,-500.0,9.298e-05,2]
[355955101,1741734634159,-500.0,9.298e-05,2]
[355955102,1741734634168,-752.82,9.298e-05,2]
[355955103,1741734634178,-500.0,9.298e-05,2]
[355955104,1741734634188,-151.0,9.298e-05,2]
[355955105,1741734634197,-500.0,9.298e-05,2]
[355955106,1741734634207,-500.0,9.298e-05,2]
[355955107,1741734634216,-971.64,9.298e-05,2]
[355955108,1741734634226,-569.22,9.298e-05,2]
[355955109,1741734634235,-500.0,9.298e-05,2]
[355955110,1741734634244,-500.0,9.298e-05,2]
[355955111,1741734634254,-765.7,9.298e-05,2]
[355955112,1741734634264,-725.29,9.298e-05,2]
[355955113,1741734634273,-500.0,9.298e-05,2]
[355955114,1741734634282,-500.0,9.298e-05,2]
[355955115,1741734634292,-405.00647307,9.298e-05,2]
[355955116,1741734634302,-151.0,9.298e-05,2]
[355955117,1741734634311,-500.0,9.298e-05,2]
[355955118,1741734634321,-631.22,9.298e-05,2]
[355955119,1741734634330,-240.6201087,9.298e-05,2]
[355955120,1741734634340,-500.0,9.298e-05,2]
[355955121,1741734634349,-500.0,9.298e-05,2]
[355955122,1741734634359,-500.0,9.298e-05,2]
[355955123,1741734634368,-611.77,9.298e-05,2]
[355955124,1741734634378,-500.0,9.298e-05,2]
[355955125,1741734634387,-500.0,9.298e-05,2]
[355955126,1741734634397,-581.8262969,9.298e-05,2]
[355955127,1741734634406,-500.0,9.298e-05,2]
[355955128,1741734634415,-784.22,9.298e-05,2]
[355955129,1741734634425,-500.0,9.298e-05,2]
[355955130,1741734634434,-511.55,9.298e-05,2]
[355955131,1741734634444,-713.83,9.298e-05,2]
[355955132,1741734634454,-513.56,9.298e-05,2]
[355955133,1741734634463,-721.88,9.298e-05,2]
[355955134,1741734634473,-626.4,9.298e-05,2]
[355955135,1741734634482,-848.25,9.298e-05,2]
[355955136,1741734634491,-500.0,9.298e-05,2]
[355955137,1741734634501,-583.04,9.298e-05,2]
[355955138,1741734634510,-878.21,9.298e-05,2]
[355955139,1741734634520,-500.0,9.298e-05,2]
[355955140,1741734634529,-979.97,9.298e-05,2]
[355955141,1741734634539,-500.0,9.298e-05,2]
[355955142,1741734634548,-500.0,9.298e-05,2]
[355955143,1741734634557,-500.0,9.298e-05,2]
[355955144,1741734634566,-500.0,9.298e-05,2]
[355955145,1741734634576,-717.86,9.298e-05,2]
[355955146,1741734634585,-500.0,9.298e-05,2]
[355955147,1741734634595,-559.2,9.298e-05,2]
[355955148,1741734634604,-276.06897169,9.298e-05,2]
[355955149,1741734634613,-500.0,9.298e-05,2]
[355955150,1741734634622,-672.19,9.298e-05,2]
[355955151,1741734634632,-164.625182,9.298e-05,2]
[355955152,1741734634641,-699.55,9.298e-05,2]
[355955153,1741734634650,-508.05,9.298e-05,2]
[355955154,1741734634660,-164.625182,9.298e-05,2]
[355955155,1741734634669,-500.0,9.298e-05,2]
[355955156,1741734634679,-500.0,9.298e-05,2]
[355955157,1741734634688,-500.0,9.298e-05,2]
[355955158,1741734634698,-500.0,9.298e-05,2]
[355955159,1741734634707,-500.0,9.298e-05,2]
[355955160,1741734634716,-500.0,9.298e-05,2]
[355955161,1741734634725,-500.0,9.298e-05,2]
[355955162,1741734634738,-500.0,9.298e-05,2]
[355955163,1741734634748,-383.70495833,9.298e-05,2]
[355955164,1741734634757,-500.0,9.298e-05,2]
[355955165,1741734634766,-519.44,9.298e-05,2]
[355955166,1741734634776,-500.0,9.298e-05,2]
[355955167,1741734634786,-500.0,9.298e-05,2]
[355955168,1741734634795,-500.0,9.298e-05,2]
[355955169,1741734634805,-500.0,9.298e-05,2]
[355955170,1741734634815,-500.0,9.298e-05,2]
[355955171,1741734634825,-500.0,9.298e-05,2]
[355955172,1741734634835,-500.0,9.298e-05,2]
[355955173,1741734634844,-874.56,9.298e-05,2]
[355955174,1741734634854,-500.0,9.298e-05,2]
[355955175,1741734634863,-961.24,9.298e-05,2]
[355955176,1741734634872,-500.0,9.298e-05,2]
[355955177,1741734634882,-822.43,9.298e-05,2]
[355955178,1741734634892,-500.0,9.298e-05,2]
[355955179,1741734634902,-550.45,9.298e-05,2]
[355955180,1741734634911,-1110.76,9.298e-05,2]
[355955181,1741734634920,-500.0,9.298e-05,2]
[355955182,1741734634929,-500.0,9.298e-05,2]
[355955183,1741734634939,-500.0,9.298e-05,2]
[355955184,1741734634948,-500.0,9.298e-05,2]
[355955185,1741734634957,-500.0,9.298e-05,2]
[355955186,1741734634966,-500.0,9.298e-05,2]
[355955187,1741734634975,-500.0,9.298e-05,2]
[355955188,1741734634985,-542.51,9.298e-05,2]
[355955189,1741734634994,-1021.32,9.298e-05,2]
[355955190,1741734635004,-500.0,9.298e-05,2]
[355955191,1741734635013,-840.16,9.298e-05,2]
[355955192,1741734635023,-500.0,9.298e-05,2]
[355955193,1741734635032,-500.0,9.298e-05,2]
[355955194,1741734635043,-500.0,9.298e-05,2]
[355955195,1741734635052,-500.0,9.298e-05,2]
[355955196,1741734635061,-500.0,9.298e-05,2]
[355955197,1741734635071,-500.0,9.298e-05,2]
[355955198,1741734635080,-500.0,9.298e-05,2]
[355955199,1741734635090,-889.85,9.298e-05,2]
[355955200,1741734635099,-567.52,9.298e-05,2]
[355955201,1741734635108,-500.0,9.298e-05,2]
[355955202,1741734635117,-500.0,9.298e-05,2]
[355955203,1741734635127,-500.0,9.298e-05,2]
[355955204,1741734635136,-500.0,9.298e-05,2]
[355955205,1741734635145,-500.0,9.298e-05,2]
[355955206,1741734635154,-500.0,9.298e-05,2]
[355955207,1741734635164,-500.0,9.298e-05,2]
[355955208,1741734635173,-500.0,9.298e-05,2]
[355955209,1741734635183,-500.0,9.298e-05,2]
[355955210,1741734635192,-937.48,9.298e-05,2]
[355955211,1741734635201,-514.76,9.298e-05,2]
[355955212,1741734635211,-671.79,9.298e-05,2]
[355955213,1741734635220,-500.0,9.298e-05,2]
[355955214,1741734635229,-151.0,9.298e-05,2]
[355955215,1741734635239,-500.0,9.298e-05,2]
[355955216,1741734635248,-500.0,9.298e-05,2]
[355955217,1741734635257,-789.05,9.298e-05,2]
[355955218,1741734635266,-552.46942973,9.298e-05,2]
[355955219,1741734635275,-500.0,9.298e-05,2]
[355955220,1741734635284,-500.0,9.298e-05,2]
[355955221,1741734635294,-626.69,9.298e-05,2]
[355955222,1741734635303,-787.49,9.298e-05,2]
[355955223,1741734635318,-500.0,9.298e-05,2]
[355955224,1741734635327,-527.59,9.298e-05,2]
[355955225,1741734635336,-500.0,9.298e-05,2]
[355955226,1741734635345,-623.45,9.298e-05,2]
[355955227,1741734635354,-500.0,9.298e-05,2]
[355955228,1741734635363,-710.33,9.298e-05,2]
[355955229,1741734635373,-500.0,9.298e-05,2]
[355955230,1741734635382,-500.0,9.298e-05,2]
[355955231,1741734635391,-500.0,9.298e-05,2]
[355955232,1741734635399,-500.0,9.298e-05,2]
[355955233,1741734635408,-500.0,9.298e-05,2]
[355955234,1741734635418,-500.0,9.298e-05,2]
[355955235,1741734635426,-351.26759424,9.298e-05,2]
[355955236,1741734635436,-151.0,9.298e-05,2]
[355955237,1741734635446,-500.0,9.298e-05,2]
[355955238,1741734635455,-151.0,9.298e-05,2]
[355955239,1741734635464,-599.67,9.298e-05,2]
[355955240,1741734635473,-624.8,9.298e-05,2]
[355955241,1741734635482,-500.0,9.298e-05,2]
[355955242,1741734635491,-785.84,9.298e-05,2]
[355955243,1741734635500,-651.31,9.298e-05,2]
[355955244,1741734635509,-500.0,9.298e-05,2]
[355955245,1741734635519,-573.514509,9.298e-05,2]
[355955246,1741734635527,-500.0,9.298e-05,2]
[355955247,1741734635536,-500.0,9.298e-05,2]
[355955248,1741734635545,-500.0,9.298e-05,2]
[355955249,1741734635554,-668.39,9.298e-05,2]
[355955250,1741734635563,-573.514509,9.298e-05,2]
[355955251,1741734635572,-500.0,9.298e-05,2]
[355955252,1741734635582,-500.0,9.298e-05,2]
[355955253,1741734635591,-318.398726,9.298e-05,2]
[355955254,1741734635600,-318.398726,9.298e-05,2]
[355955255,1741734635609,-151.0,9.298e-05,2]
[355955256,1741734635618,-151.0,9.298e-05,2]
[355955257,1741734635627,-318.398726,9.298e-05,2]
[355955258,1741734635635,-318.398726,9.298e-05,2]
[355955259,1741734635645,-831.18,9.298e-05,2]
[355955260,1741734635654,-589.03,9.298e-05,2]
[355955261,1741734635663,-500.0,9.298e-05,2]
[355955262,1741734635672,-535.81,9.298e-05,2]
[355955263,1741734635681,-897.66,9.298e-05,2]
[355955264,1741734635690,-151.552059,9.298e-05,2]
[355955265,1741734635700,-527.89,9.298e-05,2]
[355955266,1741734635709,-500.0,9.298e-05,2]
[355955267,1741734635719,-958.76,9.298e-05,2]
[355955268,1741734635728,-500.0,9.298e-05,2]
[355955269,1741734635738,-500.0,9.298e-05,2]
[355955270,1741734635747,-745.83,9.298e-05,2]
[355955271,1741734635756,-500.0,9.298e-05,2]
[355955272,1741734635766,-905.64,9.298e-05,2]
[355955273,1741734635775,-500.0,9.298e-05,2]
[355955274,1741734635785,-500.0,9.298e-05,2]
[355955275,1741734635794,-500.0,9.298e-05,2]
[355955276,1741734635803,-770.48,9.298e-05,2]
[355955277,1741734635816,-828.15,9.298e-05,2]
[355955278,1741734635826,-500.0,9.298e-05,2]
[355955279,1741734635835,-716.7,9.298e-05,2]
[355955280,1741734635844,-823.51,9.298e-05,2]
[355955281,1741734635853,-500.0,9.298e-05,2]
[355955282,1741734635862,-500.0,9.298e-05,2]
[355955283,1741734635871,-500.0,9.298e-05,2]
[355955284,1741734635881,-743.28,9.298e-05,2]
[355955285,1741734635890,-500.0,9.298e-05,2]
[355955286,1741734635900,-549.63,9.298e-05,2]
[355955287,1741734635909,-500.0,9.298e-05,2]
[355955288,1741734635918,-500.0,9.298e-05,2]
[355955289,1741734635927,-500.0,9.298e-05,2]
[355955290,1741734635936,-1039.63,9.298e-05,2]
[355955291,1741734635946,-522.11,9.298e-05,2]
[355955292,1741734635956,-500.0,9.298e-05,2]
[355955293,1741734635965,-500.0,9.298e-05,2]
[355955294,1741734635974,-500.0,9.298e-05,2]
[355955295,1741734635983,-214.489812,9.298e-05,2]
[355955296,1741734635992,-151.0,9.298e-05,2]
[355955297,1741734636006,-500.0,9.298e-05,2]
[355955298,1741734636020,-151.0,9.298e-05,2]
[355955299,1741734636034,-151.0,9.298e-05,2]
[355955300,1741734636046,-151.0,9.298e-05,2]
[355955301,1741734636058,-151.0,9.298e-05,2]
[355955302,1741734636068,-606.73260304,9.298e-05,2]
[355955303,1741734636080,-500.0,9.298e-05,2]
[355955304,1741734636092,-214.489812,9.298e-05,2]
[355955305,1741734636105,-500.0,9.298e-05,2]
[355955306,1741734636116,-500.0,9.298e-05,2]
[355955307,1741734636128,-500.0,9.298e-05,2]
[355955308,1741734636141,-500.0,9.298e-05,2]
[355955309,1741734636153,-738.46,9.298e-05,2]
[355955310,1741734636166,-500.0,9.298e-05,2]
[355955311,1741734636178,-500.0,9.298e-05,2]
[355955312,1741734636190,-151.0,9.298e-05,2]
[355955313,1741734636202,-151.0,9.298e-05,2]
[355955314,1741734636212,-151.0,9.298e-05,2]
[355955315,1741734636223,-151.0,9.298e-05,2]
[355955316,1741734636236,-500.0,9.298e-05,2]
[355955317,1741734636248,-151.0,9.298e-05,2]
[355955318,1741734636260,-151.0,9.298e-05,2]
[355955319,1741734636272,-151.0,9.298e-05,2]
[355955320,1741734636284,-151.0,9.298e-05,2]
[355955321,1741734636296,-151.0,9.298e-05,2]
[355955322,1741734636309,-151.0,9.298e-05,2]
[355955323,1741734636321,-151.0,9.298e-05,2]
[355955324,1741734636333,-151.0,9.298e-05,2]
[355955325,1741734636344,-895.94,9.298e-05,2]
[355955326,1741734636357,-500.0,9.298e-05,2]
[355955327,1741734636369,-500.0,9.298e-05,2]
[355955328,1741734636381,-151.0,9.298e-05,2]
[355955329,1741734636392,-151.0,9.298e-05,2]
[355955330,1741734636404,-151.0,9.298e-05,2]
[355955331,1741734636416,-151.0,9.298e-05,2]
[355955332,1741734636428,-371.3478935,9.298e-05,2]
[355955333,1741734636440,-500.0,9.298e-05,2]
[355955334,1741734636453,-151.0,9.298e-05,2]
[355955335,1741734636467,-151.0,9.298e-05,2]
[355955336,1741734636478,-151.0,9.298e-05,2]
[355955337,1741734636489,-985.12,9.298e-05,2]
[355955338,1741734636500,-291.5024,9.298e-05,2]
[355955339,1741734636512,-500.0,9.298e-05,2]
[355955340,1741734636522,-500.0,9.298e-05,2]
[355955341,1741734636532,-500.0,9.298e-05,2]
[355955342,1741734636543,-500.0,9.298e-05,2]
[355955343,1741734636555,-151.0,9.298e-05,2]
[355955344,1741734636569,-151.0,9.298e-05,2]
[355955345,1741734636581,-151.0,9.298e-05,2]
[355955346,1741734636591,-151.0,9.298e-05,2]
[355955347,1741734636601,-500.0,9.298e-05,2]
[355955348,1741734636611,-250.623535,9.298e-05,2]
[355955349,1741734636621,-844.93,9.298e-05,2]
[355955350,1741734636632,-250.623535,9.298e-05,2]
[355955351,1741734636644,-250.623535,9.298e-05,2]
[355955352,1741734636658,-250.623535,9.298e-05,2]
[355955353,1741734636671,-817.33,9.298e-05,2]
[355955354,1741734636681,-500.0,9.298e-05,2]
[355955355,1741734636692,-500.0,9.298e-05,2]
[355955356,1741734636703,-250.623535,9.298e-05,2]
[355955357,1741734636714,-500.0,9.298e-05,2]
[355955358,1741734636725,-250.623535,9.298e-05,2]
[355955359,1741734636740,-250.623535,9.298e-05,2]
[355955360,1741734636751,-250.623535,9.298e-05,2]
[355955361,1741734636762,-500.0,9.298e-05,2]
[355955362,1741734636773,-599.52,9.298e-05,2]
[355955363,1741734636785,-500.0,9.298e-05,2]
[355955364,1741734636796,-268.84874799,9.298e-05,2]
[355955370,1741734638106,-231.15125201,9.298e-05,2]
[355955371,1741734638116,-326.75904637,9.298e-05,2]
[355955377,1741734638651,-173.24095363,9.298e-05,2]
[355955378,1741734638661,-377.10754645,9.298e-05,2]
[355955382,1741734639993,-122.89245355,9.298e-05,2]
[355955383,1741734640004,-500.0,9.298e-05,2]
[355955384,1741734640013,-500.0,9.298e-05,2]
[355955385,1741734640023,-764.18,9.298e-05,2]
[355955386,1741734640031,-500.0,9.298e-05,2]
[355955387,1741734640041,-500.0,9.298e-05,2]
[355955388,1741734640050,-500.0,9.298e-05,2]
[355955389,1741734640059,-2.15800133,9.298e-05,2]
[355955390,1741734640199,-497.84199867,9.298e-05,2]
[355955391,1741734640208,-754.05385132,9.298e-05,2]
[355955392,1741734640220,-99.43614868,9.298e-05,2]
[355955393,1741734640229,-599.05,9.298e-05,2]
[355955394,1741734640239,-500.0,9.298e-05,2]
[355955395,1741734640247,-577.27,9.298e-05,2]
[355955396,1741734640256,-120.09385087,9.298e-05,2]
[355955405,1741734643098,-398.6163417,9.297e-05,2]
[355955406,1741734643634,-149.1536583,9.297e-05,2]
[355955407,1741734643644,-714.93614913,9.298e-05,2]
[355955408,1741734643653,-500.0,9.298e-05,2]
[355955409,1741734643662,-500.0,9.298e-05,2]
[355955410,1741734643671,-500.0,9.298e-05,2]
[355955411,1741734643680,-1036.02,9.298e-05,2]
[355955412,1741734643690,-926.95,9.298e-05,2]
[355955413,1741734643699,-500.0,9.298e-05,2]
[355955414,1741734643709,-500.0,9.298e-05,2]
[355955415,1741734643718,-500.0,9.298e-05,2]
[355955416,1741734643727,-500.0,9.298e-05,2]
[355955417,1741734643740,-624.83,9.298e-05,2]
[355955418,1741734643749,-500.0,9.298e-05,2]
[355955419,1741734643758,-1918.42,9.298e-05,2]
[355955420,1741734643768,-623.72,9.298e-05,2]
[355955421,1741734643778,-500.0,9.298e-05,2]
[355955422,1741734643788,-500.0,9.298e-05,2]
[355955423,1741734643797,-500.0,9.298e-05,2]
[355955424,1741734643807,-709.75,9.298e-05,2]
[355955425,1741734643817,-500.0,9.298e-05,2]
[355955426,1741734643827,-681.3,9.298e-05,2]
[355955427,1741734643836,-500.0,9.298e-05,2]
[355955428,1741734643846,-500.0,9.298e-05,2]
[355955429,1741734643855,-901.27,9.298e-05,2]
[355955430,1741734643864,-666.13,9.298e-05,2]
[355955431,1741734643873,-500.0,9.298e-05,2]
[355955432,1741734643883,-500.0,9.298e-05,2]
[355955433,1741734643892,-990.13,9.298e-05,2]
[355955434,1741734643901,-500.0,9.298e-05,2]
[355955435,1741734643911,-500.0,9.298e-05,2]
[355955436,1741734643921,-757.97,9.298e-05,2]
[355955437,1741734643930,-1251.88,9.298e-05,2]
[355955438,1741734643940,-500.0,9.298e-05,2]
[355955439,1741734643949,-717.31,9.298e-05,2]
[355955440,1741734643958,-500.0,9.298e-05,2]
[355955441,1741734643967,-500.0,9.298e-05,2]
[355955442,1741734643976,-500.0,9.298e-05,2]
[355955443,1741734643985,-500.0,9.298e-05,2]
[355955444,1741734643994,-500.0,9.298e-05,2]
[355955445,1741734644004,-516.76,9.298e-05,2]
[355955446,1741734644013,-481.86185875,9.298e-05,2]
[355955447,1741734644026,-18.13814125,9.298e-05,2]
[355955448,1741734644034,-9927.92136818,9.298e-05,2]
[355955623,1741734646131,-72.07863182,9.298e-05,2]
[355955625,1741734646140,-10000.0,9.298e-05,2]
[355955627,1741734646150,-10000.0,9.298e-05,2]
[355955629,1741734646159,-10000.0,9.298e-05,2]
[355955631,1741734646168,-10000.0,9.298e-05,2]
[355955633,1741734646177,-500.0,9.298e-05,2]
[355955635,1741734646186,-10000.0,9.298e-05,2]
[355955637,1741734646195,-10000.0,9.298e-05,2]
[355955639,1741734646204,-10000.0,9.298e-05,2]
[355955641,1741734646213,-10000.0,9.298e-05,2]
[355955643,1741734646222,-10000.0,9.298e-05,2]
[355955644,1741734646230,-500.0,9.298e-05,2]
[355955646,1741734646240,-500.0,9.298e-05,2]
[355955648,1741734646249,-1456.83,9.298e-05,2]
[355955650,1741734646258,-660.31,9.298e-05,2]
[355955652,1741734646267,-1741.738902,9.298e-05,2]
[355955654,1741734646276,-1741.738902,9.298e-05,2]
[355955656,1741734646285,-9327.30356418,9.298e-05,2]
[355955658,1741734646297,-672.69643582,9.298e-05,2]
[355955660,1741734646306,-109.05356918,9.298e-05,2]
[355955662,1741734646318,-390.94643082,9.298e-05,2]
[355955664,1741734646327,-317.96387485,9.298e-05,2]
[355955668,1741734646353,-1423.77502715,9.298e-05,2]
[355955670,1741734646362,-3576.8631,9.298e-05,2]
[355955673,1741734646381,-6461.063955,9.298e-05,2]
[355955675,1741734646390,-1741.738902,9.298e-05,2]
[355955677,1741734646399,-1741.738902,9.298e-05,2]
[355955679,1741734646408,-1004.25,9.298e-05,2]
[355955680,1741734646417,-303.26390652,9.298e-05,2]
[355955682,1741734646426,-1741.738902,9.298e-05,2]
[355955684,1741734646435,-1741.738902,9.298e-05,2]
[355955686,1741734646444,-500.0,9.298e-05,2]
[355955688,1741734646453,-1741.738902,9.298e-05,2]
[355955690,1741734646463,-1741.738902,9.298e-05,2]
[355955692,1741734646473,-318.0813717,9.298e-05,2]
[355963363,1741734774562,1000.0,8.627e-05,2]
[355963367,1741735177919,1408.18,8.219e-05,2]
[355963373,1741735459256,162.3,8.51e-05,2]
[355963393,1741735832083,-550.0,9e-05,2]
[355963394,1741735832093,-400.0,9e-05,3]
[355963395,1741735832103,-129.97088319,9e-05,2]
[355963396,1741735832115,-20.02911681,9e-05,2]
[355963397,1741735832124,-250.0,9.009e-05,2]
[355963398,1741735832134,-500.0,9.178e-05,2]
[355963399,1741735832143,-2429.83,9.197e-05,2]
[355963400,1741735832153,-300.0,9.197e-05,2]
[355963401,1741735832162,-2143.9346,9.198e-05,2]
[355963402,1741735832171,-3416.3,9.198e-05,2]
[355963403,1741735832181,-8481.05947865,9.287e-05,2]
[355963404,1741735832195,-150.0,9.293e-05,2]
[355963405,1741735832204,-15668.0619843,9.294e-05,2]
[355963406,1741735832214,-1828.961331,9.294e-05,2]
[355963407,1741735832223,-7789.3248327,9.294e-05,2]
[355963408,1741735832233,-241.24,9.294e-05,2]
[355963409,1741735832242,-2027.52,9.294e-05,2]
[355963410,1741735832251,-1423.66,9.294e-05,2]
[355963411,1741735832261,-7038.49,9.294e-05,2]
[355963412,1741735832271,-330.45,9.294e-05,2]
[355963413,1741735832281,-152.52,9.294e-05,2]
[355963414,1741735832290,-999.99,9.294e-05,2]
[355963415,1741735832299,-150.99,9.294e-05,2]
[355963416,1741735832309,-500.0,9.297e-05,2]
[355963417,1741735832318,-500.0,9.297e-05,2]
[355963418,1741735832328,-500.0,9.297e-05,2]
[355963419,1741735832337,-643.8,9.297e-05,2]
[355963420,1741735832347,-2202.91,9.297e-05,2]
[355963421,1741735832356,-500.0,9.297e-05,2]
[355963422,1741735832366,-500.0,9.297e-05,2]
[355963423,1741735832376,-770.34,9.297e-05,2]
[355963424,1741735832385,-500.0,9.297e-05,2]
[355963425,1741735832394,-558.75,9.297e-05,2]
[355963426,1741735832404,-905.47,9.297e-05,2]
[355963427,1741735832413,-500.0,9.297e-05,2]
[355963428,1741735832422,-500.0,9.297e-05,2]
[355963430,1741735832431,-644.18,9.297e-05,2]
[355963432,1741735832440,-500.0,9.297e-05,2]
[355963434,1741735832449,-590.12,9.297e-05,2]
[355963436,1741735832459,-500.0,9.297e-05,2]
[355963438,1741735832468,-753.05,9.297e-05,2]
[355963440,1741735832478,-500.0,9.297e-05,2]
[355963441,1741735832487,-500.0,9.297e-05,2]
[355963442,1741735832496,-744.83,9.297e-05,2]
[355963443,1741735832505,-769.81,9.297e-05,2]
[355963444,1741735832514,-886.93,9.297e-05,2]
[355963445,1741735832523,-866.57,9.297e-05,2]
[355963446,1741735832533,-964.88,9.297e-05,2]
[355963447,1741735832542,-500.0,9.297e-05,2]
[355963448,1741735832551,-775.4,9.297e-05,2]
[355963449,1741735832560,-500.0,9.297e-05,2]
[355963450,1741735832569,-500.0,9.297e-05,2]
[355963451,1741735832578,-657.6,9.297e-05,2]
[355963452,1741735832587,-500.0,9.297e-05,2]
[355963453,1741735832596,-500.0,9.297e-05,2]
[355963454,1741735832605,-691.8,9.297e-05,2]
[355963455,1741735832614,-500.0,9.297e-05,2]
[355963456,1741735832622,-817.2,9.297e-05,2]
[355963457,1741735832631,-500.0,9.297e-05,2]
[355963458,1741735832640,-413.40131452,9.297e-05,2]
[355963460,1741735832649,-500.0,9.297e-05,2]
[355963462,1741735832658,-888.32,9.297e-05,2]
[355963464,1741735832667,-500.0,9.297e-05,2]
[355963465,1741735832677,-500.0,9.297e-05,2]
[355963467,1741735832687,-597.73,9.297e-05,2]
[355963469,1741735832696,-600.58,9.297e-05,2]
[355963471,1741735832706,-500.0,9.297e-05,2]
[355963473,1741735832715,-545.5,9.297e-05,2]
[355963475,1741735832725,-500.0,9.297e-05,2]
[355963477,1741735832734,-500.0,9.297e-05,2]
[355963479,1741735832743,-500.0,9.297e-05,2]
[355963481,1741735832753,-1064.47,9.297e-05,2]
[355963483,1741735832762,-500.0,9.297e-05,2]
[355963485,1741735832771,-500.0,9.297e-05,2]
[355963487,1741735832780,-500.0,9.297e-05,2]
[355963489,1741735832790,-978.76,9.297e-05,2]
[355963491,1741735832799,-753.09,9.297e-05,2]
[355963493,1741735832808,-852.77,9.297e-05,2]
[355963495,1741735832818,-500.0,9.297e-05,2]
[355963497,1741735832829,-500.0,9.297e-05,2]
[355963499,1741735832838,-505.89,9.297e-05,2]
[355963501,1741735832848,-500.0,9.297e-05,2]
[355963502,1741735832857,-756.17,9.297e-05,2]
[355963504,1741735832866,-500.0,9.297e-05,2]
[355963506,1741735832876,-500.0,9.297e-05,2]
[355963508,1741735832885,-500.0,9.297e-05,2]
[355963510,1741735832895,-500.0,9.297e-05,2]
[355963512,1741735832904,-500.0,9.297e-05,2]
[355963514,1741735832913,-500.0,9.297e-05,2]
[355963516,1741735832923,-624.18,9.297e-05,2]
[355963518,1741735832932,-500.0,9.297e-05,2]
[355963520,1741735832941,-500.0,9.297e-05,2]
[355963522,1741735832951,-500.0,9.297e-05,2]
[355963524,1741735832960,-500.0,9.297e-05,2]
[355963526,1741735832969,-838.12,9.297e-05,2]
[355963528,1741735832978,-796.55,9.297e-05,2]
[355963530,1741735832987,-500.0,9.297e-05,2]
[355963532,1741735832996,-500.0,9.297e-05,2]
[355963534,1741735833005,-858.61,9.297e-05,2]
[355963536,1741735833014,-519.9,9.297e-05,2]
[355963538,1741735833024,-500.0,9.297e-05,2]
[355963540,1741735833033,-224.43924121,9.297e-05,2]
[355963542,1741735833043,-793.64,9.297e-05,2]
[355963544,1741735833053,-543.87,9.297e-05,2]
[355963546,1741735833063,-500.0,9.297e-05,2]
[355963548,1741735833072,-500.0,9.297e-05,2]
[355963550,1741735833082,-898.42,9.297e-05,2]